[Event "Titled Tuesday Blitz June 6 Early 2023"]
[White "Jaracz, Pawel"]
[Black "Arencibia Monduy, Antonio"]
[WhiteFideId "1102222"]
[BlackFideId "3507939"]
[WhiteElo "2454"]
[BlackElo "2491"]
[Result "1/2-1/2"]
[Round "5"]
[TimeControl "180+2"]
[Date "2023.06.06"]
[WhiteClock "0:00:11"]
[BlackClock "0:00:07"]
[Board "59"]

1. Nf3 {[%clk 0:03:00]}  e6 {[%clk 0:02:59]} 2. c4 {[%clk 0:02:57]}  d5 {[%clk 0:02:59]} 3. g3 {[%clk 0:02:56]}  c6 {[%clk 0:02:57]} 4. Bg2 {[%clk 0:02:56]}  f5 {[%clk 0:02:57]} 5. O-O {[%clk 0:02:55]}  Nf6 {[%clk 0:02:57]} 6. d3 {[%clk 0:02:56]}  Bd6 {[%clk 0:02:56]} 7. Nc3 {[%clk 0:02:55]}  O-O {[%clk 0:02:56]} 8. b3 {[%clk 0:02:53]}  Bd7 {[%clk 0:02:43]} 9. e4 {[%clk 0:02:50]}  fxe4 {[%clk 0:02:37]} 10. dxe4 {[%clk 0:02:49]}  Bb4 {[%clk 0:02:33]} 11. Qc2 {[%clk 0:02:35]}  Bxc3 {[%clk 0:02:32]} 12. Qxc3 {[%clk 0:02:35]}  Nxe4 {[%clk 0:02:32]} 13. Qe3 {[%clk 0:02:36]}  Be8 {[%clk 0:02:20]} 14. Bb2 {[%clk 0:02:34]}  Nd7 {[%clk 0:02:00]} 15. Nd4 {[%clk 0:02:31]}  Qg5 {[%clk 0:01:10]} 16. Qxg5 {[%clk 0:02:03]}  Nxg5 {[%clk 0:01:10]} 17. h4 {[%clk 0:02:03]}  e5 {[%clk 0:00:51]} 18. cxd5 {[%clk 0:01:41]}  exd4 {[%clk 0:00:43]} 19. dxc6 {[%clk 0:01:40]}  Nf3+ {[%clk 0:00:36]} 20. Bxf3 {[%clk 0:01:39]}  Rxf3 {[%clk 0:00:37]} 21. cxd7 {[%clk 0:01:39]}  Bxd7 {[%clk 0:00:38]} 22. Bxd4 {[%clk 0:01:37]}  Bc6 {[%clk 0:00:38]} 23. Be3 {[%clk 0:01:36]}  Rf5 {[%clk 0:00:36]} 24. Rfd1 {[%clk 0:01:35]}  a5 {[%clk 0:00:36]} 25. Rd4 {[%clk 0:01:34]}  a4 {[%clk 0:00:36]} 26. b4 {[%clk 0:01:31]}  Re8 {[%clk 0:00:31]} 27. Rad1 {[%clk 0:01:17]}  h6 {[%clk 0:00:31]} 28. Rd8 {[%clk 0:01:13]}  Re5 {[%clk 0:00:29]} 29. a3 {[%clk 0:01:11]}  Rxd8 {[%clk 0:00:27]} 30. Rxd8+ {[%clk 0:01:10]}  Kf7 {[%clk 0:00:27]} 31. Kf1 {[%clk 0:00:51]}  Rd5 {[%clk 0:00:26]} 32. Rb8 {[%clk 0:00:45]}  Rd3 {[%clk 0:00:23]} 33. Ke2 {[%clk 0:00:24]}  Rxa3 {[%clk 0:00:23]} 34. Bd4 {[%clk 0:00:21]}  Rb3 {[%clk 0:00:20]} 35. Rc8 {[%clk 0:00:18]}  Rxb4 {[%clk 0:00:18]} 36. Rc7+ {[%clk 0:00:17]}  Ke6 {[%clk 0:00:17]} 37. Kd3 {[%clk 0:00:18]}  Rb3+ {[%clk 0:00:13]} 38. Kc2 {[%clk 0:00:17]}  g5 {[%clk 0:00:09]} 39. h5 {[%clk 0:00:16]}  Be4+ {[%clk 0:00:08]} 40. Kc1 {[%clk 0:00:15]}  a3 {[%clk 0:00:06]} 41. Rc3 {[%clk 0:00:14]}  Rb4 {[%clk 0:00:04]} 42. Bg7 {[%clk 0:00:13]}  a2 {[%clk 0:00:03]} 43. Ra3 {[%clk 0:00:13]}  Rb1+ {[%clk 0:00:03]} 44. Kd2 {[%clk 0:00:13]}  Bd5 {[%clk 0:00:03]} 45. Ke3 {[%clk 0:00:09]}  Rb5 {[%clk 0:00:03]} 46. Bxh6 {[%clk 0:00:07]}  Rb1 {[%clk 0:00:02]} 47. Bg7 {[%clk 0:00:06]}  Kf5 {[%clk 0:00:02]} 48. Bd4 {[%clk 0:00:05]}  Rb3+ {[%clk 0:00:02]} 49. Rxb3 {[%clk 0:00:05]}  Bxb3 {[%clk 0:00:03]} 50. g4+ {[%clk 0:00:05]}  Kxg4 {[%clk 0:00:03]} 51. h6 {[%clk 0:00:05]}  Bg8 {[%clk 0:00:03]} 52. Kd3 {[%clk 0:00:03]}  Kh5 {[%clk 0:00:03]} 53. Kc2 {[%clk 0:00:03]}  Kxh6 {[%clk 0:00:03]} 54. Kb2 {[%clk 0:00:04]}  Kg6 {[%clk 0:00:03]} 55. Be3 {[%clk 0:00:04]}  Kf5 {[%clk 0:00:03]} 56. Bb6 {[%clk 0:00:04]}  g4 {[%clk 0:00:04]} 57. Bc7 {[%clk 0:00:04]}  Ke4 {[%clk 0:00:05]} 58. Bg3 {[%clk 0:00:04]}  Kf3 {[%clk 0:00:05]} 59. Ka1 {[%clk 0:00:04]}  Ke2 {[%clk 0:00:05]} 60. Kb2 {[%clk 0:00:04]}  Kd3 {[%clk 0:00:05]} 61. Be5 {[%clk 0:00:04]}  b5 {[%clk 0:00:05]} 62. Bg3 {[%clk 0:00:05]}  Bf7 {[%clk 0:00:05]} 63. Bf4 {[%clk 0:00:05]}  Be6 {[%clk 0:00:05]} 64. Bg3 {[%clk 0:00:05]}  Ke2 {[%clk 0:00:05]} 65. Bh4 {[%clk 0:00:05]}  Bd5 {[%clk 0:00:04]} 66. Bg3 {[%clk 0:00:06]}  Kf3 {[%clk 0:00:03]} 67. Bh4 {[%clk 0:00:06]}  Kg2 {[%clk 0:00:04]} 68. Bg3 {[%clk 0:00:06]}  Kh3 {[%clk 0:00:04]} 69. Bf4 {[%clk 0:00:07]}  Bf7 {[%clk 0:00:02]} 70. Bg3 {[%clk 0:00:07]}  Kg2 {[%clk 0:00:02]} 71. Bh4 {[%clk 0:00:07]}  Kf3 {[%clk 0:00:03]} 72. Bg3 {[%clk 0:00:07]}  Ke4 {[%clk 0:00:04]} 73. Bh4 {[%clk 0:00:07]}  Kd3 {[%clk 0:00:04]} 74. Bg3 {[%clk 0:00:08]}  Bd5 {[%clk 0:00:04]} 75. Be5 {[%clk 0:00:07]}  Bc4 {[%clk 0:00:04]} 76. Bg3 {[%clk 0:00:07]}  b4 {[%clk 0:00:04]} 77. Be5 {[%clk 0:00:07]}  b3 {[%clk 0:00:05]} 78. Bd6 {[%clk 0:00:07]}  Be6 {[%clk 0:00:05]} 79. Be5 {[%clk 0:00:06]}  Kd2 {[%clk 0:00:03]} 80. Bf4+ {[%clk 0:00:06]}  Ke2 {[%clk 0:00:03]} 81. Bg3 {[%clk 0:00:06]}  Bd5 {[%clk 0:00:03]} 82. Bh4 {[%clk 0:00:07]}  Kd1 {[%clk 0:00:03]} 83. Bg3 {[%clk 0:00:07]}  Bf7 {[%clk 0:00:03]} 84. Bh4 {[%clk 0:00:07]}  Kd2 {[%clk 0:00:03]} 85. Bg3 {[%clk 0:00:07]}  a1=Q+ {[%clk 0:00:03]} 86. Kxa1 {[%clk 0:00:07]}  Kc2 {[%clk 0:00:03]} 87. Be5 {[%clk 0:00:07]}  Be6 {[%clk 0:00:03]} 88. Bf6 {[%clk 0:00:07]}  Bd5 {[%clk 0:00:03]} 89. Be5 {[%clk 0:00:07]}  Be4 {[%clk 0:00:03]} 90. Bf6 {[%clk 0:00:07]}  Bf5 {[%clk 0:00:03]} 91. Be5 {[%clk 0:00:08]}  Be6 {[%clk 0:00:03]} 92. Bf6 {[%clk 0:00:08]}  Bd5 {[%clk 0:00:04]} 93. Be5 {[%clk 0:00:08]}  Bf3 {[%clk 0:00:04]} 94. Bf6 {[%clk 0:00:08]}  Kd3 {[%clk 0:00:02]} 95. Be5 {[%clk 0:00:08]}  Ke2 {[%clk 0:00:02]} 96. Bg3 {[%clk 0:00:08]}  Bd5 {[%clk 0:00:02]} 97. Kb2 {[%clk 0:00:09]}  Kd3 {[%clk 0:00:02]} 98. Bh4 {[%clk 0:00:09]}  Ke2 {[%clk 0:00:03]} 99. Bg3 {[%clk 0:00:10]}  Kf3 {[%clk 0:00:03]} 100. Bh4 {[%clk 0:00:10]}  g3 {[%clk 0:00:03]} 101. Bxg3 {[%clk 0:00:09]}  Kg4 {[%clk 0:00:04]} 102. Kc3 {[%clk 0:00:10]}  Kf3 {[%clk 0:00:04]} 103. Kb2 {[%clk 0:00:10]}  Kg4 {[%clk 0:00:04]} 104. Be5 {[%clk 0:00:10]}  Kf3 {[%clk 0:00:05]} 105. Bd4 {[%clk 0:00:11]}  Kg4 {[%clk 0:00:05]} 106. Kc3 {[%clk 0:00:11]}  Kf3 {[%clk 0:00:05]} 107. Kd2 {[%clk 0:00:11]}  Bg8 {[%clk 0:00:05]} 108. Kc3 {[%clk 0:00:10]}  Bf7 {[%clk 0:00:05]} 109. Kb2 {[%clk 0:00:10]}  Bg8 {[%clk 0:00:06]} 110. Kc3 {[%clk 0:00:10]}  Bf7 {[%clk 0:00:06]} 111. Kb2 {[%clk 0:00:11]}  Bg8 {[%clk 0:00:07]} 112. Kc3 {[%clk 0:00:11]} 1/2-1/2


[Site "https://www.chess.com"]

[Event "Titled Tuesday Blitz June 6 Early 2023"]
[White "Aarav Dengla"]
[Black "Itgelt, Khuyagtsogt"]
[WhiteFideId "45059756"]
[BlackFideId "4902912"]
[WhiteElo "2288"]
[BlackElo "2227"]
[Result "0-1"]
[Round "5"]
[TimeControl "180+2"]
[Date "2023.06.06"]
[WhiteClock "0:01:06"]
[BlackClock "0:01:31"]
[Board "62"]

1. e4 {[%clk 0:02:11]}  e6 {[%clk 0:02:57]} 2. d4 {[%clk 0:02:09]}  d5 {[%clk 0:02:58]} 3. Nd2 {[%clk 0:02:08]}  c5 {[%clk 0:02:58]} 4. Ngf3 {[%clk 0:02:06]}  Nc6 {[%clk 0:02:58]} 5. dxc5 {[%clk 0:02:06]}  Bxc5 {[%clk 0:02:57]} 6. Nb3 {[%clk 0:02:05]}  Bb6 {[%clk 0:02:57]} 7. exd5 {[%clk 0:02:05]}  exd5 {[%clk 0:02:58]} 8. c4 {[%clk 0:02:05]}  Qe7+ {[%clk 0:02:54]} 9. Qe2 {[%clk 0:02:02]}  dxc4 {[%clk 0:02:54]} 10. Qxe7+ {[%clk 0:02:01]}  Ngxe7 {[%clk 0:02:54]} 11. Bxc4 {[%clk 0:02:02]}  O-O {[%clk 0:02:53]} 12. O-O {[%clk 0:02:01]}  Bg4 {[%clk 0:02:53]} 13. Be2 {[%clk 0:02:00]}  Rfe8 {[%clk 0:02:53]} 14. h3 {[%clk 0:01:59]}  Ng6 {[%clk 0:02:50]} 15. Bd1 {[%clk 0:01:59]}  Bf5 {[%clk 0:02:46]} 16. Bd2 {[%clk 0:01:54]}  Rad8 {[%clk 0:02:38]} 17. Rc1 {[%clk 0:01:51]}  h6 {[%clk 0:02:24]} 18. Re1 {[%clk 0:01:50]}  Rxe1+ {[%clk 0:02:22]} 19. Bxe1 {[%clk 0:01:51]}  Nf4 {[%clk 0:02:23]} 20. Bc2 {[%clk 0:01:43]}  Ne2+ {[%clk 0:02:20]} 21. Kf1 {[%clk 0:01:39]}  Nxc1 {[%clk 0:02:20]} 22. Bxf5 {[%clk 0:01:40]}  Nxb3 {[%clk 0:02:21]} 23. axb3 {[%clk 0:01:40]}  Nd4 {[%clk 0:02:15]} 24. Be4 {[%clk 0:01:32]}  Nxf3 {[%clk 0:02:01]} 25. Bxf3 {[%clk 0:01:30]}  Rd7 {[%clk 0:01:56]} 26. Bc3 {[%clk 0:01:28]}  Bd4 {[%clk 0:01:50]} 27. Ke2 {[%clk 0:01:27]}  Bxc3 {[%clk 0:01:50]} 28. bxc3 {[%clk 0:01:28]}  Kf8 {[%clk 0:01:51]} 29. b4 {[%clk 0:01:28]}  b6 {[%clk 0:01:48]} 30. Bc6 {[%clk 0:01:27]}  Rc7 {[%clk 0:01:48]} 31. b5 {[%clk 0:01:27]}  Ke7 {[%clk 0:01:47]} 32. Kd3 {[%clk 0:01:22]}  Kd6 {[%clk 0:01:48]} 33. Be8 {[%clk 0:01:22]}  Kc5 {[%clk 0:01:38]} 34. g4 {[%clk 0:01:19]}  g5 {[%clk 0:01:35]} 35. f3 {[%clk 0:01:07]}  Re7 {[%clk 0:01:31]} 36. Bc6 {[%clk 0:01:06]}  a5 {[%clk 0:01:31]} 0-1


[Site "https://www.chess.com"]

[Event "Titled Tuesday Blitz June 6 Early 2023"]
[White "Fus, Jakub"]
[Black "Pham, Le Thao Nguyen"]
[WhiteFideId "1193023"]
[BlackFideId "12401226"]
[WhiteElo "2335"]
[BlackElo "2286"]
[Result "1/2-1/2"]
[Round "5"]
[TimeControl "180+2"]
[Date "2023.06.06"]
[WhiteClock "0:00:04"]
[BlackClock "0:00:06"]
[Board "64"]

1. e4 {[%clk 0:03:00]}  c6 {[%clk 0:02:51]} 2. d4 {[%clk 0:03:00]}  d5 {[%clk 0:02:50]} 3. exd5 {[%clk 0:03:01]}  cxd5 {[%clk 0:02:49]} 4. Bd3 {[%clk 0:03:01]}  Nc6 {[%clk 0:02:49]} 5. c3 {[%clk 0:03:00]}  Qc7 {[%clk 0:02:48]} 6. h3 {[%clk 0:03:00]}  g6 {[%clk 0:02:45]} 7. Nf3 {[%clk 0:02:58]}  Bf5 {[%clk 0:02:44]} 8. Bxf5 {[%clk 0:02:55]}  gxf5 {[%clk 0:02:40]} 9. O-O {[%clk 0:02:56]}  Nf6 {[%clk 0:02:33]} 10. Na3 {[%clk 0:02:51]}  a6 {[%clk 0:02:12]} 11. Nc2 {[%clk 0:02:50]}  e6 {[%clk 0:02:11]} 12. Nce1 {[%clk 0:02:50]}  Bd6 {[%clk 0:02:11]} 13. Nd3 {[%clk 0:02:50]}  Ne4 {[%clk 0:02:08]} 14. Be3 {[%clk 0:02:39]}  O-O {[%clk 0:01:51]} 15. Qc1 {[%clk 0:02:34]}  Kh8 {[%clk 0:01:49]} 16. Bf4 {[%clk 0:02:33]}  Bxf4 {[%clk 0:01:39]} 17. Qxf4 {[%clk 0:02:34]}  Qxf4 {[%clk 0:01:33]} 18. Nxf4 {[%clk 0:02:35]}  b5 {[%clk 0:01:31]} 19. a3 {[%clk 0:02:30]}  Rac8 {[%clk 0:01:26]} 20. Nd3 {[%clk 0:02:28]}  Kg7 {[%clk 0:01:22]} 21. a4 {[%clk 0:02:13]}  bxa4 {[%clk 0:01:15]} 22. Rxa4 {[%clk 0:02:10]}  a5 {[%clk 0:01:16]} 23. Nfe5 {[%clk 0:02:08]}  Nxe5 {[%clk 0:01:15]} 24. Nxe5 {[%clk 0:02:08]}  Rb8 {[%clk 0:01:04]} 25. Nd3 {[%clk 0:02:07]}  Nd2 {[%clk 0:01:03]} 26. Re1 {[%clk 0:01:34]}  Nc4 {[%clk 0:00:59]} 27. Re2 {[%clk 0:01:17]}  Rb6 {[%clk 0:00:45]} 28. g3 {[%clk 0:00:59]}  Rfb8 {[%clk 0:00:40]} 29. b4 {[%clk 0:00:59]}  axb4 {[%clk 0:00:36]} 30. Nxb4 {[%clk 0:01:00]}  Nd6 {[%clk 0:00:32]} 31. Nd3 {[%clk 0:00:49]}  Ne4 {[%clk 0:00:31]} 32. Rc2 {[%clk 0:00:39]}  Rc6 {[%clk 0:00:22]} 33. c4 {[%clk 0:00:37]}  dxc4 {[%clk 0:00:16]} 34. Raxc4 {[%clk 0:00:38]}  Rxc4 {[%clk 0:00:16]} 35. Rxc4 {[%clk 0:00:38]}  Rb1+ {[%clk 0:00:14]} 36. Kg2 {[%clk 0:00:37]}  Rd1 {[%clk 0:00:15]} 37. Nc5 {[%clk 0:00:32]}  Rd2 {[%clk 0:00:13]} 38. Nxe4 {[%clk 0:00:31]}  fxe4 {[%clk 0:00:14]} 39. Kf1 {[%clk 0:00:31]}  f5 {[%clk 0:00:13]} 40. Ke1 {[%clk 0:00:30]}  Rd3 {[%clk 0:00:13]} 41. Rc7+ {[%clk 0:00:28]}  Kg6 {[%clk 0:00:13]} 42. Rd7 {[%clk 0:00:29]}  h5 {[%clk 0:00:12]} 43. h4 {[%clk 0:00:28]}  Kf6 {[%clk 0:00:11]} 44. Ke2 {[%clk 0:00:28]}  Ra3 {[%clk 0:00:10]} 45. d5 {[%clk 0:00:26]}  exd5 {[%clk 0:00:04]} 46. Rxd5 {[%clk 0:00:27]}  Ra2+ {[%clk 0:00:05]} 47. Kf1 {[%clk 0:00:26]}  Ra1+ {[%clk 0:00:04]} 48. Kg2 {[%clk 0:00:26]}  Ra2 {[%clk 0:00:05]} 49. Kf1 {[%clk 0:00:24]}  Ra1+ {[%clk 0:00:05]} 50. Ke2 {[%clk 0:00:25]}  Ra2+ {[%clk 0:00:05]} 51. Rd2 {[%clk 0:00:23]}  Ra3 {[%clk 0:00:04]} 52. Rd6+ {[%clk 0:00:22]}  Kg7 {[%clk 0:00:02]} 53. Rd2 {[%clk 0:00:18]}  Rb3 {[%clk 0:00:03]} 54. Ra2 {[%clk 0:00:17]}  Kf6 {[%clk 0:00:03]} 55. Ra6+ {[%clk 0:00:14]}  Kg7 {[%clk 0:00:04]} 56. Ra5 {[%clk 0:00:15]}  Kg6 {[%clk 0:00:04]} 57. Ra6+ {[%clk 0:00:15]}  Kg7 {[%clk 0:00:04]} 58. Kf1 {[%clk 0:00:16]}  Rb2 {[%clk 0:00:02]} 59. Re6 {[%clk 0:00:15]}  Rb3 {[%clk 0:00:02]} 60. Kg2 {[%clk 0:00:15]}  Rb2 {[%clk 0:00:03]} 61. Kg1 {[%clk 0:00:15]}  Rb3 {[%clk 0:00:02]} 62. Kf1 {[%clk 0:00:15]}  Rb2 {[%clk 0:00:03]} 63. Ke1 {[%clk 0:00:14]}  Rb3 {[%clk 0:00:03]} 64. Ke2 {[%clk 0:00:14]}  Kf7 {[%clk 0:00:01]} 65. Rh6 {[%clk 0:00:14]}  Rb2+ {[%clk 0:00:02]} 66. Ke3 {[%clk 0:00:12]}  Rb3+ {[%clk 0:00:02]} 67. Ke2 {[%clk 0:00:08]}  Rb2+ {[%clk 0:00:03]} 68. Kf1 {[%clk 0:00:08]}  Rb1+ {[%clk 0:00:03]} 69. Kg2 {[%clk 0:00:08]}  Rb2 {[%clk 0:00:03]} 70. Rxh5 {[%clk 0:00:09]}  Kf6 {[%clk 0:00:03]} 71. Rh6+ {[%clk 0:00:07]}  Kf7 {[%clk 0:00:04]} 72. Kf1 {[%clk 0:00:06]}  Rb1+ {[%clk 0:00:04]} 73. Ke2 {[%clk 0:00:07]}  Rb2+ {[%clk 0:00:04]} 74. Ke3 {[%clk 0:00:08]}  Rb3+ {[%clk 0:00:05]} 75. Ke2 {[%clk 0:00:08]}  Rb2+ {[%clk 0:00:05]} 76. Ke3 {[%clk 0:00:09]}  Rb3+ {[%clk 0:00:05]} 77. Kd2 {[%clk 0:00:02]}  Rb2+ {[%clk 0:00:05]} 78. Ke1 {[%clk 0:00:03]}  Rb1+ {[%clk 0:00:05]} 79. Ke2 {[%clk 0:00:04]}  Rb2+ {[%clk 0:00:06]} 1/2-1/2


[Site "https://www.chess.com"]

[Event "Titled Tuesday Blitz June 6 Early 2023"]
[White "Ansh M Shah"]
[Black "Begmuratov, Alisher"]
[WhiteFideId "25033379"]
[BlackFideId "14203367"]
[WhiteElo "2084"]
[BlackElo "2387"]
[Result "0-1"]
[Round "5"]
[TimeControl "180+2"]
[Date "2023.06.06"]
[WhiteClock "0:00:05"]
[BlackClock "0:00:11"]
[Board "66"]

1. d4 {[%clk 0:02:56]}  d5 {[%clk 0:02:59]} 2. c4 {[%clk 0:02:54]}  e6 {[%clk 0:03:00]} 3. g3 {[%clk 0:02:53]}  Nf6 {[%clk 0:02:59]} 4. Bg2 {[%clk 0:02:54]}  Be7 {[%clk 0:02:57]} 5. Nf3 {[%clk 0:02:55]}  O-O {[%clk 0:02:57]} 6. O-O {[%clk 0:02:56]}  b6 {[%clk 0:02:47]} 7. Nc3 {[%clk 0:02:54]}  Bb7 {[%clk 0:02:46]} 8. Ne5 {[%clk 0:02:54]}  c6 {[%clk 0:02:41]} 9. Qc2 {[%clk 0:02:47]}  Nfd7 {[%clk 0:02:34]} 10. Nxd7 {[%clk 0:02:32]}  Nxd7 {[%clk 0:02:35]} 11. e4 {[%clk 0:02:32]}  dxc4 {[%clk 0:02:29]} 12. e5 {[%clk 0:02:21]}  Rb8 {[%clk 0:02:28]} 13. Ne4 {[%clk 0:02:13]}  c5 {[%clk 0:02:17]} 14. Be3 {[%clk 0:02:08]}  cxd4 {[%clk 0:02:13]} 15. Bxd4 {[%clk 0:02:09]}  Bd5 {[%clk 0:01:54]} 16. Rad1 {[%clk 0:02:00]}  Qc7 {[%clk 0:01:53]} 17. Rfe1 {[%clk 0:00:54]}  b5 {[%clk 0:01:39]} 18. a3 {[%clk 0:00:42]}  Rbd8 {[%clk 0:01:25]} 19. h4 {[%clk 0:00:30]}  Nc5 {[%clk 0:01:00]} 20. Bxc5 {[%clk 0:00:18]}  Bxc5 {[%clk 0:00:59]} 21. Ng5 {[%clk 0:00:19]}  g6 {[%clk 0:01:00]} 22. Bxd5 {[%clk 0:00:19]}  Rxd5 {[%clk 0:00:50]} 23. Rxd5 {[%clk 0:00:11]}  exd5 {[%clk 0:00:51]} 24. e6 {[%clk 0:00:11]}  Qxg3+ {[%clk 0:00:49]} 25. Kf1 {[%clk 0:00:09]}  Qxh4 {[%clk 0:00:34]} 26. exf7+ {[%clk 0:00:09]}  Kh8 {[%clk 0:00:33]} 27. Re8 {[%clk 0:00:09]}  d4 {[%clk 0:00:11]} 28. Ne6 {[%clk 0:00:06]}  Qh1+ {[%clk 0:00:10]} 29. Ke2 {[%clk 0:00:06]}  d3+ {[%clk 0:00:11]} 30. Qxd3 {[%clk 0:00:06]}  cxd3+ {[%clk 0:00:12]} 31. Kxd3 {[%clk 0:00:06]}  Qd5+ {[%clk 0:00:11]} 32. Kc2 {[%clk 0:00:06]}  Qf5+ {[%clk 0:00:10]} 33. Kc1 {[%clk 0:00:05]}  Qxf7 {[%clk 0:00:11]} 0-1


[Site "https://www.chess.com"]

[Event "Titled Tuesday Blitz June 6 Early 2023"]
[White "Makhmudov, Shukhrat"]
[Black "Khumalo, Keith"]
[WhiteFideId "14200775"]
[BlackFideId "14319470"]
[WhiteElo "2135"]
[BlackElo "2056"]
[Result "0-1"]
[Round "5"]
[TimeControl "180+2"]
[Date "2023.06.06"]
[WhiteClock "0:00:55"]
[BlackClock "0:01:58"]
[Board "67"]

1. e4 {[%clk 0:02:59]}  c5 {[%clk 0:02:58]} 2. Nf3 {[%clk 0:02:59]}  e6 {[%clk 0:02:57]} 3. d4 {[%clk 0:02:54]}  cxd4 {[%clk 0:02:57]} 4. Nxd4 {[%clk 0:02:55]}  a6 {[%clk 0:02:58]} 5. c4 {[%clk 0:02:50]}  Nf6 {[%clk 0:02:57]} 6. Nc3 {[%clk 0:02:50]}  Qc7 {[%clk 0:02:58]} 7. Bd3 {[%clk 0:02:49]}  Bb4 {[%clk 0:02:58]} 8. O-O {[%clk 0:02:48]}  Bxc3 {[%clk 0:02:57]} 9. bxc3 {[%clk 0:02:48]}  d6 {[%clk 0:02:58]} 10. Bg5 {[%clk 0:02:47]}  Nbd7 {[%clk 0:02:58]} 11. Bh4 {[%clk 0:02:48]}  b6 {[%clk 0:02:52]} 12. Re1 {[%clk 0:02:47]}  Bb7 {[%clk 0:02:52]} 13. Bg3 {[%clk 0:02:46]}  Rc8 {[%clk 0:02:45]} 14. Rb1 {[%clk 0:02:45]}  Ne5 {[%clk 0:02:45]} 15. Bxe5 {[%clk 0:02:32]}  dxe5 {[%clk 0:02:45]} 16. Nf3 {[%clk 0:02:32]}  O-O {[%clk 0:02:44]} 17. Qb3 {[%clk 0:02:32]}  Nd7 {[%clk 0:02:44]} 18. Qa3 {[%clk 0:02:27]}  Nc5 {[%clk 0:02:42]} 19. Bc2 {[%clk 0:02:27]}  Rfd8 {[%clk 0:02:41]} 20. Qb4 {[%clk 0:02:26]}  Rd6 {[%clk 0:02:28]} 21. h3 {[%clk 0:02:12]}  f6 {[%clk 0:02:27]} 22. Rb2 {[%clk 0:02:05]}  Rcd8 {[%clk 0:02:23]} 23. a4 {[%clk 0:02:00]}  a5 {[%clk 0:02:21]} 24. Qa3 {[%clk 0:01:59]}  Ba6 {[%clk 0:02:18]} 25. Qa2 {[%clk 0:01:56]}  Nd3 {[%clk 0:02:14]} 26. Bxd3 {[%clk 0:01:55]}  Rxd3 {[%clk 0:02:15]} 27. Qb1 {[%clk 0:01:49]}  R8d6 {[%clk 0:02:09]} 28. Rc1 {[%clk 0:01:31]}  Bxc4 {[%clk 0:02:07]} 29. Rbc2 {[%clk 0:01:10]}  Qc6 {[%clk 0:02:03]} 30. Qa1 {[%clk 0:01:08]}  Qxe4 {[%clk 0:02:01]} 31. Qa3 {[%clk 0:00:55]}  Rd1+ {[%clk 0:01:58]} 0-1


[Site "https://www.chess.com"]

[Event "Titled Tuesday Blitz June 6 Early 2023"]
[White "Topalov, Aleksandar"]
[Black "Gomez Ledo, Roberto Carlos"]
[WhiteFideId "925659"]
[BlackFideId "3507076"]
[WhiteElo "2151"]
[BlackElo "2378"]
[Result "0-1"]
[Round "5"]
[TimeControl "180+2"]
[Date "2023.06.06"]
[WhiteClock "0:00:01"]
[BlackClock "0:00:31"]
[Board "68"]

1. b3 {[%clk 0:03:00]}  d5 {[%clk 0:02:59]} 2. Bb2 {[%clk 0:03:01]}  Bf5 {[%clk 0:02:59]} 3. Nf3 {[%clk 0:03:00]}  e6 {[%clk 0:02:59]} 4. g3 {[%clk 0:02:58]}  h6 {[%clk 0:02:58]} 5. Bg2 {[%clk 0:02:58]}  Nf6 {[%clk 0:02:59]} 6. O-O {[%clk 0:02:58]}  a5 {[%clk 0:02:59]} 7. a3 {[%clk 0:02:58]}  Be7 {[%clk 0:02:58]} 8. d3 {[%clk 0:02:58]}  O-O {[%clk 0:02:59]} 9. Nbd2 {[%clk 0:02:58]}  Bh7 {[%clk 0:02:59]} 10. c4 {[%clk 0:02:51]}  c6 {[%clk 0:02:58]} 11. Ra2 {[%clk 0:02:51]}  Nbd7 {[%clk 0:02:49]} 12. Qa1 {[%clk 0:02:49]}  Qb6 {[%clk 0:02:50]} 13. Bc3 {[%clk 0:02:43]}  Rfe8 {[%clk 0:02:43]} 14. b4 {[%clk 0:02:40]}  a4 {[%clk 0:02:31]} 15. Ne5 {[%clk 0:02:15]}  Bf8 {[%clk 0:02:30]} 16. Bd4 {[%clk 0:02:04]}  Qc7 {[%clk 0:02:26]} 17. Rc2 {[%clk 0:01:59]}  Qd8 {[%clk 0:02:24]} 18. Nxd7 {[%clk 0:01:46]}  Nxd7 {[%clk 0:02:23]} 19. Nf3 {[%clk 0:01:45]}  f6 {[%clk 0:02:14]} 20. cxd5 {[%clk 0:01:40]}  exd5 {[%clk 0:02:13]} 21. Bh3 {[%clk 0:01:26]}  Bd6 {[%clk 0:02:10]} 22. Nh4 {[%clk 0:01:20]}  Be5 {[%clk 0:01:56]} 23. Bf5 {[%clk 0:01:16]}  Nf8 {[%clk 0:01:50]} 24. Bxh7+ {[%clk 0:01:08]}  Kxh7 {[%clk 0:01:51]} 25. Nf3 {[%clk 0:01:07]}  Nd7 {[%clk 0:01:42]} 26. Qb1 {[%clk 0:00:58]}  Qe7 {[%clk 0:01:38]} 27. Qb2 {[%clk 0:00:41]}  g5 {[%clk 0:01:31]} 28. Bxe5 {[%clk 0:00:34]}  fxe5 {[%clk 0:01:26]} 29. b5 {[%clk 0:00:27]}  c5 {[%clk 0:01:24]} 30. Rfc1 {[%clk 0:00:20]}  b6 {[%clk 0:01:22]} 31. Rd2 {[%clk 0:00:15]}  Qf7 {[%clk 0:01:21]} 32. Qb1 {[%clk 0:00:12]}  Kg8 {[%clk 0:01:11]} 33. Rf1 {[%clk 0:00:11]}  Re6 {[%clk 0:01:06]} 34. Rdd1 {[%clk 0:00:08]}  Rf6 {[%clk 0:01:04]} 35. Nd2 {[%clk 0:00:08]}  Rf8 {[%clk 0:01:03]} 36. f3 {[%clk 0:00:07]}  h5 {[%clk 0:01:00]} 37. Qc2 {[%clk 0:00:07]}  h4 {[%clk 0:00:58]} 38. Qxa4 {[%clk 0:00:07]}  Rh6 {[%clk 0:00:54]} 39. Qg4 {[%clk 0:00:06]}  Qg7 {[%clk 0:00:45]} 40. e4 {[%clk 0:00:03]}  Nf6 {[%clk 0:00:40]} 41. Qe6+ {[%clk 0:00:03]}  Kh8 {[%clk 0:00:40]} 42. Qxe5 {[%clk 0:00:03]}  hxg3 {[%clk 0:00:38]} 43. Qxg3 {[%clk 0:00:02]}  Nh5 {[%clk 0:00:38]} 44. Qg4 {[%clk 0:00:02]}  Rf4 {[%clk 0:00:34]} 45. Qc8+ {[%clk 0:00:01]}  Rf8 {[%clk 0:00:31]} 0-1


[Site "https://www.chess.com"]